fUST/lending_fUST_20250819
["ID","MTS","AMOUNT","RATE_DAILY","PERIOD"]
[380186883,1755599454611,-151.0,0.00019726,2]
[380186884,1755599454620,-151.0,0.00019726,2]
[380186885,1755599454630,-430.44422325,0.00019726,2]
[380186886,1755599454640,-480.0,0.00019726,2]
[380186887,1755599454649,-151.0,0.00019726,2]
[380186888,1755599454661,-480.0,0.00019726,2]
[380186889,1755599454670,-480.0,0.00019726,2]
[380186890,1755599454680,-480.0,0.00019726,2]
[380186891,1755599454690,-480.0,0.00019726,2]
[380186892,1755599454699,-480.0,0.00019726,2]
[380186893,1755599454709,-480.0,0.00019726,2]
[380186894,1755599454719,-777.32,0.00019726,2]
[380186895,1755599454728,-589.87,0.00019726,2]
[380186896,1755599454738,-480.0,0.00019726,2]
[380186897,1755599454748,-480.0,0.00019726,2]
[380186898,1755599454758,-480.0,0.00019726,2]
[380186899,1755599454767,-865.92,0.00019726,2]
[380186900,1755599454777,-480.0,0.00019726,2]
[380186901,1755599454861,-590.49129169,0.00019726,2]
[380186902,1755599454870,-461.22491904,0.00019726,2]
[380186903,1755599454880,-565.05,0.00019726,2]
[380186904,1755599454889,-322.947487,0.00019726,2]
[380186905,1755599454899,-480.0,0.00019726,2]
[380186906,1755599454908,-322.947487,0.00019726,2]
[380186907,1755599454918,-480.0,0.00019726,2]
[380186908,1755599454927,-442.60378996,0.00019726,2]
[380186909,1755599454936,-154.8625366,0.00019726,2]
[380186910,1755599454946,-480.0,0.00019726,2]
[380186911,1755599454955,-480.0,0.00019726,2]
[380186912,1755599454964,-337.35963477,0.00019726,2]
[380186913,1755599454973,-480.0,0.00019726,2]
[380186914,1755599454983,-151.0,0.00019726,2]
[380186915,1755599454992,-480.0,0.00019726,2]
[380186916,1755599455001,-480.0,0.00019726,2]
[380186917,1755599455011,-480.0,0.00019726,2]
[380186918,1755599455020,-480.0,0.00019726,2]
[380186919,1755599455029,-480.0,0.00019726,2]
[380186920,1755599455038,-151.0,0.00019726,2]
[380186921,1755599455047,-900.2,0.00019726,2]
[380186922,1755599455056,-151.0,0.00019726,2]
[380186923,1755599455065,-151.0,0.00019726,2]
[380186924,1755599455074,-718.91,0.00019726,2]
[380186925,1755599455084,-599.35,0.00019726,2]
[380186926,1755599455093,-151.0,0.00019726,2]
[380186927,1755599455102,-484.19684791,0.00019726,2]
[380186928,1755599455112,-480.0,0.00019726,2]
[380186929,1755599455121,-480.0,0.00019726,2]
[380186930,1755599455131,-151.0,0.00019726,2]
[380186931,1755599455141,-480.0,0.00019726,2]
[380186932,1755599455150,-480.0,0.00019726,2]
[380186933,1755599455160,-2530.76,0.00019726,2]
[380186934,1755599455170,-480.0,0.00019726,2]
[380186935,1755599455179,-242.755203,0.00019726,2]
[380186936,1755599455188,-480.0,0.00019726,2]
[380186937,1755599455198,-505.96,0.00019726,2]
[380186938,1755599455207,-1065.73,0.00019726,2]
[380186939,1755599455215,-480.0,0.00019726,2]
[380186940,1755599455225,-422.77003729,0.00019726,2]
[380186941,1755599455234,-480.0,0.00019726,2]
[380186942,1755599455243,-480.0,0.00019726,2]
[380186943,1755599455253,-480.0,0.00019726,2]
[380186944,1755599455262,-480.0,0.00019726,2]
[380186945,1755599455271,-480.0,0.00019726,2]
[380186946,1755599455281,-151.163807,0.00019726,2]
[380186947,1755599455290,-151.0,0.00019726,2]
[380186948,1755599455299,-151.0,0.00019726,2]
[380186949,1755599455309,-480.0,0.00019726,2]
[380186950,1755599455318,-279.316607,0.00019726,2]
[380186951,1755599455327,-480.0,0.00019726,2]
[380186952,1755599455336,-151.0,0.00019726,2]
[380186953,1755599455345,-679.49,0.00019726,2]
[380186954,1755599455355,-480.0,0.00019726,2]
[380186955,1755599455364,-663.9,0.00019726,2]
[380186956,1755599455373,-480.0,0.00019726,2]
[380186957,1755599455382,-480.0,0.00019726,2]
[380186958,1755599455391,-480.0,0.00019726,2]
[380186959,1755599455400,-480.0,0.00019726,2]
[380186960,1755599455409,-480.0,0.00019726,2]
[380186961,1755599455418,-534.14,0.00019726,2]
[380186962,1755599455427,-480.0,0.00019726,2]
[380186963,1755599455437,-576.57048043,0.00019726,2]
[380186964,1755599455446,-554.30209539,0.00019726,2]
[380186965,1755599455455,-1373.91,0.00019726,2]
[380186966,1755599455465,-480.0,0.00019726,2]
[380186967,1755599455474,-1581.88,0.00019726,2]
[380186968,1755599455484,-151.0,0.00019726,2]
[380186969,1755599455493,-460.0,0.00019726,2]
[380186970,1755599455503,-480.0,0.00019726,2]
[380186971,1755599455512,-563.51659871,0.00019726,2]
[380186972,1755599455522,-480.0,0.00019726,2]
[380186973,1755599455531,-480.0,0.00019726,2]
[380186974,1755599455541,-480.0,0.00019726,2]
[380186975,1755599455551,-480.0,0.00019726,2]
[380186976,1755599455559,-480.0,0.00019726,2]
[380186977,1755599455569,-1611.44,0.00019726,2]
[380186978,1755599455579,-904.4,0.00019726,2]
[380186979,1755599455591,-480.0,0.00019726,2]
[380186980,1755599455601,-480.0,0.00019726,2]
[380186981,1755599455610,-480.0,0.00019726,2]
[380186982,1755599455620,-151.0,0.00019726,2]
[380186983,1755599455629,-1514.26,0.00019726,2]
[380186984,1755599455638,-480.0,0.00019726,2]
[380186985,1755599455649,-481.63554784,0.00019726,2]
[380186986,1755599455658,-1044.84,0.00019726,2]
[380186987,1755599455667,-480.0,0.00019726,2]
[380186988,1755599455676,-480.0,0.00019726,2]
[380186989,1755599455686,-389.46361166,0.00019726,2]
[380186990,1755599455695,-480.0,0.00019726,2]
[380186991,1755599455704,-151.0,0.00019726,2]
[380186992,1755599455714,-783.38,0.00019726,2]
[380186993,1755599455725,-480.0,0.00019726,2]
[380186994,1755599455736,-460.0,0.00019726,2]
[380186995,1755599455745,-876.6,0.00019726,2]
[380186996,1755599455754,-151.0,0.00019726,2]
[380186997,1755599455764,-480.0,0.00019726,2]
[380186998,1755599455773,-1209.1,0.00019726,2]
[380186999,1755599455782,-439.85535862,0.00019726,2]
[380187000,1755599455792,-480.0,0.00019726,2]
[380187001,1755599455801,-611.3,0.00019726,2]
[380187002,1755599455811,-623.99,0.00019726,2]
[380187003,1755599455820,-480.0,0.00019726,2]
[380187004,1755599455830,-480.0,0.00019726,2]
[380187005,1755599455839,-897.57,0.00019726,2]
[380187006,1755599455848,-826.52,0.00019726,2]
[380187007,1755599455857,-480.0,0.00019726,2]
[380187008,1755599455866,-480.0,0.00019726,2]
[380187009,1755599455876,-480.0,0.00019726,2]
[380187010,1755599455885,-480.0,0.00019726,2]
[380187011,1755599455895,-480.0,0.00019726,2]
[380187012,1755599455904,-480.0,0.00019726,2]
[380187013,1755599455914,-480.0,0.00019726,2]
[380187014,1755599455924,-480.0,0.00019726,2]
[380187015,1755599455934,-480.0,0.00019726,2]
[380187016,1755599455943,-329.90867605,0.00019726,2]
[380187017,1755599455952,-480.0,0.00019726,2]
[380187018,1755599455962,-480.0,0.00019726,2]
[380187019,1755599455971,-480.0,0.00019726,2]
[380187020,1755599455980,-480.0,0.00019726,2]
[380187021,1755599455989,-480.0,0.00019726,2]
[380187022,1755599455998,-2157.32,0.00019726,2]
[380187023,1755599456007,-480.0,0.00019726,2]
[380187024,1755599456017,-480.0,0.00019726,2]
[380187025,1755599456026,-4013.61,0.00019726,2]
[380187026,1755599456036,-803.59,0.00019726,2]
[380187027,1755599456046,-480.0,0.00019726,2]
[380187028,1755599456055,-480.0,0.00019726,2]
[380187029,1755599456064,-480.0,0.00019726,2]
[380187030,1755599456073,-480.0,0.00019726,2]
[380187031,1755599456082,-480.0,0.00019726,2]
[380187032,1755599456163,-480.0,0.00019726,2]
[380187033,1755599456172,-2409.49,0.00019726,2]
[380187034,1755599456182,-189.110511,0.00019726,2]
[380187035,1755599456191,-480.0,0.00019726,2]
[380187036,1755599456202,-189.110511,0.00019726,2]
[380187037,1755599456211,-480.0,0.00019726,2]
[380187038,1755599456220,-8486.46,0.00019726,2]
[380187039,1755599456229,-480.0,0.00019726,2]
[380187040,1755599456238,-480.0,0.00019726,2]
[380187041,1755599456248,-480.0,0.00019726,2]
[380187042,1755599456257,-581.68,0.00019726,2]
[380187043,1755599456267,-2954.3,0.00019726,2]
[380187044,1755599456276,-259.250128,0.00019726,2]
[380187045,1755599456285,-480.0,0.00019726,2]
[380187046,1755599456295,-259.250128,0.00019726,2]
[380187047,1755599456304,-480.0,0.00019726,2]
[380187048,1755599456314,-480.0,0.00019726,2]
[380187049,1755599456323,-151.0,0.00019726,2]
[380187050,1755599456332,-480.0,0.00019726,2]
[380187051,1755599456341,-303.968295,0.00019726,2]
[380187052,1755599456350,-480.0,0.00019726,2]
[380187053,1755599456359,-480.0,0.00019726,2]
[380187054,1755599456368,-365.35357004,0.00019726,2]
[380187055,1755599456378,-971.83,0.00019726,2]
[380187056,1755599456387,-480.0,0.00019726,2]
[380187057,1755599456397,-480.0,0.00019726,2]
[380187058,1755599456407,-303.968295,0.00019726,2]
[380187059,1755599456416,-480.0,0.00019726,2]
[380187060,1755599456425,-151.0,0.00019726,2]
[380187061,1755599456434,-151.0,0.00019726,2]
[380187062,1755599456444,-151.0,0.00019726,2]
[380187063,1755599456452,-480.0,0.00019726,2]
[380187064,1755599456461,-480.0,0.00019726,2]
[380187065,1755599456470,-811.56,0.00019726,2]
[380187066,1755599456480,-647.39,0.00019726,2]
[380187067,1755599456492,-536.54,0.00019726,2]
[380187068,1755599456501,-480.0,0.00019726,2]
[380187069,1755599456510,-480.0,0.00019726,2]
[380187070,1755599456519,-261.80758,0.00019726,2]
[380187071,1755599456528,-480.0,0.00019726,2]
[380187072,1755599456537,-998.9,0.00019726,2]
[380187073,1755599456547,-491.18,0.00019726,2]
[380187074,1755599456556,-151.0,0.00019726,2]
[380187075,1755599456566,-480.0,0.00019726,2]
[380187076,1755599456575,-663.34,0.00019726,2]
[380187077,1755599456589,-480.0,0.00019726,2]
[380187078,1755599456599,-480.0,0.00019726,2]
[380187079,1755599456608,-480.0,0.00019726,2]
[380187080,1755599456617,-2351.56,0.00019726,2]
[380187081,1755599456627,-480.0,0.00019726,2]
[380187082,1755599456636,-480.0,0.00019726,2]
[380187083,1755599456648,-480.0,0.00019726,2]
[380187084,1755599456659,-480.0,0.00019726,2]
[380187085,1755599456668,-2029.9,0.00019726,2]
[380187086,1755599456678,-480.0,0.00019726,2]
[380187087,1755599456687,-7307.62,0.00019726,2]
[380187088,1755599456697,-598.35922954,0.00019726,2]
[380187089,1755599456707,-480.0,0.00019726,2]
[380187090,1755599456716,-151.0,0.00019726,2]
[380187091,1755599456725,-480.0,0.00019726,2]
[380187092,1755599456736,-480.0,0.00019726,2]
[380187093,1755599456746,-480.0,0.00019726,2]
[380187094,1755599456756,-382.67044105,0.00019726,2]
[380187095,1755599456765,-480.0,0.00019726,2]
[380187096,1755599456775,-480.0,0.00019726,2]
[380187097,1755599456784,-847.07,0.00019726,2]
[380187098,1755599456794,-151.0,0.00019726,2]
[380187099,1755599456804,-441.66460074,0.00019726,2]
[380187100,1755599456813,-826.51,0.00019726,2]
[380187101,1755599456822,-480.0,0.00019726,2]
[380187102,1755599456832,-480.0,0.00019726,2]
[380187103,1755599456842,-5360.43,0.00019726,2]
[380187104,1755599456853,-151.0,0.00019726,2]
[380187105,1755599456863,-480.0,0.00019726,2]
[380187106,1755599456873,-480.0,0.00019726,2]
[380187107,1755599456882,-480.0,0.00019726,2]
[380187108,1755599456892,-480.0,0.00019726,2]
[380187109,1755599456901,-480.0,0.00019726,2]
[380187110,1755599456910,-480.0,0.00019726,2]
[380187111,1755599456921,-151.0,0.00019726,2]
[380187112,1755599456930,-480.0,0.00019726,2]
[380187113,1755599456939,-441.31131517,0.00019726,2]
[380187114,1755599456949,-551.0,0.00019857,2]
[380187115,1755599456958,-490.935053,0.00019863,2]
[380187116,1755599456967,-522.27057817,0.00019898,2]
[380187117,1755599456976,-461.13052485,0.00019898,2]
[380187118,1755599456986,-5301.39970532,0.000199,2]
[380187119,1755599456995,-551.0,0.00019944,2]
[380187120,1755599457004,-480.0,0.00019972,2]
[380187121,1755599457013,-480.0,0.00019972,2]
[380187122,1755599457023,-2937.52,0.00019972,2]
[380187123,1755599457033,-480.0,0.00019972,2]
[380187124,1755599457042,-480.0,0.00019972,2]
[380187125,1755599457052,-501.6669573,0.00019973,2]
[380187126,1755599457061,-248.80528292,0.00019973,2]
[380187127,1755599457070,-500.0,0.00019973,2]
[380187128,1755599457080,-500.0,0.00019973,2]
[380187129,1755599457090,-501.62691226,0.00019973,2]
[380187130,1755599457099,-158.68137963,0.00019973,2]
[380187131,1755599457108,-500.0,0.00019973,2]
[380187132,1755599457117,-158.6785085,0.00019973,2]
[380187133,1755599457127,-157.70297908,0.00019973,2]
[380187134,1755599457137,-500.0,0.00019973,2]
[380187135,1755599457146,-502.59429379,0.00019973,2]
[380187136,1755599457155,-500.0,0.00019973,2]
[380187137,1755599457164,-346.6210178,0.00019973,2]
[380187138,1755599457174,-495.55450042,0.00019973,2]
[380187139,1755599457183,-500.0,0.00019973,2]
[380187140,1755599457192,-500.0,0.00019973,2]
[380187141,1755599457201,-100000.0,0.0001999,2]
[380187142,1755599457210,-151.0,0.0001999,2]
[380187143,1755599457219,-248.108334,0.0001999,2]
[380187144,1755599457229,-248.108334,0.0001999,2]
[380187145,1755599457238,-151.0,0.0001999,2]
[380187146,1755599457247,-151.0,0.0001999,2]
[380187147,1755599457256,-199.455088,0.0001999,2]
[380187148,1755599457265,-199.455088,0.0001999,2]
[380187149,1755599457274,-151.0,0.0001999,2]
[380187150,1755599457284,-151.0,0.0001999,2]
[380187151,1755599457293,-151.0,0.0001999,2]
[380187152,1755599457303,-182.075042,0.0001999,2]
[380187153,1755599457379,-182.075042,0.0001999,2]
[380187154,1755599457389,-151.0,0.0001999,2]
[380187155,1755599457398,-151.0,0.0001999,2]
[380187156,1755599457408,-322.947487,0.0001999,2]
[380187157,1755599457417,-322.947487,0.0001999,2]
[380187158,1755599457426,-151.0,0.0001999,2]
[380187159,1755599457435,-151.0,0.0001999,2]
[380187160,1755599457445,-189.110511,0.0001999,2]
[380187161,1755599457454,-189.110511,0.0001999,2]
[380187162,1755599457463,-259.250128,0.0001999,2]
[380187163,1755599457472,-259.250128,0.0001999,2]
[380187164,1755599457481,-151.0,0.0001999,2]
[380187165,1755599457491,-303.968295,0.0001999,2]
[380187166,1755599457500,-303.968295,0.0001999,2]
[380187167,1755599457509,-151.0,0.0001999,2]
[380187168,1755599457519,-151.0,0.0001999,2]
[380187169,1755599457529,-151.0,0.0001999,2]
[380187170,1755599457538,-151.0,0.0001999,2]
[380187171,1755599457547,-151.0,0.0001999,2]
[380187172,1755599457557,-151.0,0.0001999,2]
[380187173,1755599457566,-151.0,0.00019999,2]
[380187174,1755599457577,-1593.85,0.00019999,2]
[380187175,1755599457591,-480.0,0.00019999,2]
[380187176,1755599457601,-1614.69,0.00019999,2]
[380187177,1755599457610,-480.0,0.00019999,2]
[380187178,1755599457619,-480.0,0.0002,2]
[380187179,1755599457631,-342.04557642,0.0002,2]
[380187180,1755599457640,-480.0,0.0002,2]
[380187181,1755599457651,-5400.0,0.0002,5]
[380187182,1755599457662,-480.0,0.0002,2]
[380187183,1755599457672,-480.0,0.0002,2]
[380187184,1755599457682,-480.0,0.0002,2]
[380187185,1755599457691,-222.78827076,0.0002,2]
[380187186,1755599457701,-480.0,0.0002,2]
[380187187,1755599457710,-480.0,0.0002,2]
[380187188,1755599457719,-480.0,0.0002,2]
[380187189,1755599457728,-480.0,0.0002,2]
[380187190,1755599457738,-480.0,0.0002,2]
[380187191,1755599457748,-200.0,0.0002,2]
[380187192,1755599457759,-480.0,0.0002,2]
[380187193,1755599457768,-480.0,0.0002,2]
[380187194,1755599457778,-480.0,0.0002,2]
[380187195,1755599457788,-480.0,0.0002,2]
[380187196,1755599457797,-480.0,0.0002,2]
[380187197,1755599457807,-480.0,0.0002,2]
[380187198,1755599457816,-480.0,0.0002,2]
[380187199,1755599457826,-480.0,0.0002,2]
[380187200,1755599457835,-597.82949019,0.0002,2]
[380187201,1755599457845,-322.38511646,0.0002,2]
[380187202,1755599457855,-480.0,0.0002,2]
[380187203,1755599457865,-480.0,0.0002,2]
[380187204,1755599457875,-480.0,0.0002,2]
[380187205,1755599457884,-480.0,0.0002,2]
[380187206,1755599457894,-480.0,0.0002,2]
[380187207,1755599457904,-480.0,0.0002,2]
[380187208,1755599457913,-480.0,0.0002,2]
[380187209,1755599457922,-480.0,0.0002,2]
[380187210,1755599457931,-480.0,0.0002,2]
[380187211,1755599457940,-151.0,0.0002,2]
[380187212,1755599457949,-151.0,0.0002,2]
[380187213,1755599457959,-480.0,0.0002,2]
[380187214,1755599457968,-480.0,0.0002,2]
[380187215,1755599457977,-1991.6509011,0.0002,2]
[380187216,1755599457986,-559.34714991,0.0002,2]
[380187217,1755599457995,-225.58737652,0.0002,2]
[380187218,1755599458004,-411.05364656,0.0002,2]
[380187219,1755599458014,-222.690205,0.0002,2]
[380187220,1755599458023,-480.0,0.0002,2]
[380187221,1755599458032,-151.0,0.0002,2]
[380187222,1755599458041,-151.0,0.0002,2]
[380187223,1755599458050,-480.0,0.0002,2]
[380187224,1755599458060,-151.538521,0.0002,2]
[380187225,1755599458069,-480.0,0.0002,2]
[380187226,1755599458079,-480.0,0.0002,2]
[380187227,1755599458088,-480.0,0.0002,2]
[380187228,1755599458098,-480.0,0.0002,2]
[380187229,1755599458108,-480.0,0.0002,2]
[380187230,1755599458119,-151.0,0.0002,2]
[380187231,1755599458130,-480.0,0.0002,2]
[380187232,1755599458140,-480.0,0.0002,2]
[380187233,1755599458150,-151.0,0.0002,2]
[380187234,1755599458160,-480.0,0.0002,2]
[380187235,1755599458170,-480.0,0.0002,2]
[380187236,1755599458180,-480.0,0.0002,2]
[380187237,1755599458190,-480.0,0.0002,2]
[380187238,1755599458200,-480.0,0.0002,2]
[380187239,1755599458210,-480.0,0.0002,2]
[380187240,1755599458219,-521.51406855,0.0002,2]
[380187241,1755599458228,-480.0,0.0002,2]
[380187242,1755599458238,-1102.56,0.0002,2]
[380187243,1755599458247,-480.0,0.0002,2]
[380187244,1755599458257,-480.0,0.0002,2]
[380187245,1755599458266,-599.53817664,0.0002,2]
[380187246,1755599458276,-480.0,0.0002,2]
[380187247,1755599458285,-480.0,0.0002,2]
[380187248,1755599458294,-480.0,0.0002,2]
[380187249,1755599458303,-480.0,0.0002,2]
[380187250,1755599458313,-480.0,0.0002,2]
[380187251,1755599458322,-282.96258663,0.0002,2]
[380187252,1755599458331,-503.29,0.0002,2]
[380187253,1755599458340,-480.0,0.0002,2]
[380187254,1755599458349,-385.77498191,0.0002,2]
[380187255,1755599458359,-480.0,0.0002,2]
[380187256,1755599458369,-480.0,0.0002,2]
[380187257,1755599458378,-445.31885404,0.0002,2]
[380187258,1755599458387,-478.40519851,0.0002,2]
[380187259,1755599458397,-400.66,0.0002,2]
[380187260,1755599458407,-480.0,0.0002,2]
[380187261,1755599458416,-480.0,0.0002,2]
[380187262,1755599458425,-480.0,0.0002,2]
[380187263,1755599458435,-480.0,0.0002,2]
[380187264,1755599458511,-269.60757171,0.0002,2]
[380187265,1755599458520,-480.0,0.0002,2]
[380187266,1755599458529,-480.0,0.0002,2]
[380187267,1755599458539,-480.0,0.0002,2]
[380187268,1755599458548,-480.0,0.0002,2]
[380187269,1755599458557,-841.75,0.0002,2]
[380187270,1755599458566,-480.0,0.0002,2]
[380187271,1755599458575,-480.0,0.0002,2]
[380187272,1755599458588,-784.06,0.0002,2]
[380187273,1755599458597,-480.0,0.0002,2]
[380187274,1755599458606,-371.63816899,0.0002,2]
[380187275,1755599458616,-480.0,0.0002,2]
[380187276,1755599458625,-480.0,0.0002,2]
[380187277,1755599458634,-1299.55,0.0002,2]
[380187278,1755599458643,-480.0,0.0002,2]
[380187279,1755599458653,-460.0,0.0002,2]
[380187280,1755599458662,-792.02,0.0002,2]
[380187281,1755599458672,-518.91338907,0.0002,2]
[380187282,1755599458682,-480.0,0.0002,2]
[380187283,1755599458691,-480.0,0.0002,2]
[380187284,1755599458700,-480.0,0.0002,2]
[380187285,1755599458710,-480.0,0.0002,2]
[380187286,1755599458719,-480.0,0.0002,2]
[380187287,1755599458728,-480.0,0.0002,2]
[380187288,1755599458738,-420.0,0.0002,2]
[380187289,1755599458747,-261.28086389,0.0002,2]
[380187290,1755599458757,-480.0,0.0002,2]
[380187291,1755599458766,-480.0,0.0002,2]
[380187292,1755599458776,-480.0,0.0002,2]
[380187293,1755599458785,-489.16,0.0002,2]
[380187294,1755599458795,-292.04045154,0.0002,2]
[380187295,1755599458804,-480.0,0.0002,2]
[380187296,1755599458814,-795.9,0.0002,2]
[380187297,1755599458823,-480.0,0.0002,2]
[380187298,1755599458832,-480.0,0.0002,2]
[380187299,1755599458842,-480.0,0.0002,2]
[380187300,1755599458851,-480.0,0.0002,2]
[380187301,1755599458860,-480.0,0.0002,2]
[380187302,1755599458870,-480.0,0.0002,2]
[380187303,1755599458879,-480.0,0.0002,2]
[380187304,1755599458888,-480.0,0.0002,2]
[380187305,1755599458897,-151.0,0.0002,2]
[380187306,1755599458907,-480.0,0.0002,2]
[380187307,1755599458916,-480.0,0.0002,2]
[380187308,1755599458926,-480.0,0.0002,2]
[380187309,1755599458935,-480.0,0.0002,2]
[380187310,1755599458944,-480.0,0.0002,2]
[380187311,1755599458954,-480.0,0.0002,2]
[380187312,1755599458963,-777.32,0.0002,2]
[380187313,1755599458972,-589.87,0.0002,2]
[380187314,1755599458982,-480.0,0.0002,2]
[380187315,1755599459001,-445.74969757,0.0002,2]
[380187316,1755599459016,-480.0,0.0002,2]
[380187317,1755599459036,-865.92,0.0002,2]
[380187318,1755599459054,-565.05,0.0002,2]
[380187319,1755599459072,-480.0,0.0002,2]
[380187320,1755599459089,-322.947487,0.0002,2]
[380187321,1755599459107,-322.947487,0.0002,2]
[380187322,1755599459121,-480.0,0.0002,2]
[380187323,1755599459136,-480.0,0.0002,2]
[380187324,1755599459155,-480.0,0.0002,2]
[380187325,1755599459175,-480.0,0.0002,2]
[380187326,1755599459187,-480.0,0.0002,2]
[380187327,1755599459205,-160.0,0.0002,3]
[380187328,1755599459220,-151.0,0.0002,2]
[380187329,1755599459236,-480.0,0.0002,2]
[380187330,1755599459250,-480.0,0.0002,2]
[380187331,1755599459265,-480.0,0.0002,2]
[380187332,1755599459280,-480.0,0.0002,2]
[380187333,1755599459294,-151.0,0.0002,2]
[380187334,1755599459310,-900.2,0.0002,2]
[380187335,1755599459324,-151.0,0.0002,2]
[380187336,1755599459339,-151.0,0.0002,2]
[380187337,1755599459355,-718.91,0.0002,2]
[380187338,1755599459369,-599.35,0.0002,2]
[380187339,1755599459383,-151.0,0.0002,2]
[380187340,1755599459397,-480.0,0.0002,2]
[380187341,1755599459412,-480.0,0.0002,2]
[380187342,1755599459426,-162.921368,0.0002,2]
[380187343,1755599459441,-480.0,0.0002,2]
[380187344,1755599459456,-2530.76,0.0002,2]
[380187345,1755599459471,-480.0,0.0002,2]
[380187346,1755599459485,-480.0,0.0002,2]
[380187347,1755599459499,-505.96,0.0002,2]
[380187348,1755599459513,-1065.73,0.0002,2]
[380187349,1755599459527,-615.77223041,0.0002,2]
[380187350,1755599459541,-480.0,0.0002,2]
[380187351,1755599459555,-480.0,0.0002,2]
[380187352,1755599459569,-136.75985416,0.0002,2]
[380187353,1755599459614,-343.24014584,0.0002,2]
[380187354,1755599459626,-480.0,0.0002,2]
[380187355,1755599459635,-151.0,0.0002,2]
[380187356,1755599459646,-151.0,0.0002,2]
[380187357,1755599459655,-480.0,0.0002,2]
[380187358,1755599459666,-480.0,0.0002,2]
[380187359,1755599459675,-151.0,0.0002,2]
[380187360,1755599459685,-679.49,0.0002,2]
[380187361,1755599459695,-663.9,0.0002,2]
[380187362,1755599459704,-322.48903642,0.0002,2]
[380187363,1755599459714,-480.0,0.0002,2]
[380187364,1755599459723,-460.0,0.0002,2]
[380187365,1755599459872,-480.0,0.0002,2]
[380187366,1755599459883,-480.0,0.0002,2]
[380187367,1755599459892,-534.14,0.0002,2]
[380187368,1755599459902,-480.0,0.0002,2]
[380187369,1755599459911,-1373.91,0.0002,2]
[380187370,1755599459921,-480.0,0.0002,2]
[380187371,1755599459931,-1581.88,0.0002,2]
[380187372,1755599459940,-480.0,0.0002,2]
[380187373,1755599459949,-480.0,0.0002,2]
[380187374,1755599459958,-145.55189677,0.0002,2]
[380187375,1755599460134,-160.0,0.00019176,2]
[380187376,1755599460144,-510.7,0.00019178,2]
[380187377,1755599460154,-510.7,0.00019452,2]
[380187378,1755599460164,-510.7,0.00019726,2]
[380187379,1755599460174,-334.44810323,0.0002,2]
[380187380,1755599460184,-480.0,0.0002,2]
[380187381,1755599460194,-480.0,0.0002,2]
[380187382,1755599460204,-1611.44,0.0002,2]